[Event "Late-Titled-Tuesday-Blitz-March-26-2024"]
[Site "Chess.com"]
[Date "2024.03.26"]
[Round "3"]
[White "Zhigalko_Sergei"]
[Black "Boundless_Strike"]
[Result "1-0"]
[WhiteElo "2895"]
[BlackElo "2619"]
[TimeControl "180+1"]
[EndTime "14:33:01 PDT"]
[Termination "Zhigalko_Sergei won by resignation"]

1. e4 {[%clk 0:03:00.9]} 1... e6 {[%clk 0:02:50.3]} 2. d4 {[%clk 0:03:00.3]}
2... d5 {[%clk 0:02:50.4]} 3. e5 {[%clk 0:03:00.9]} 3... c5 {[%clk 0:02:50.9]}
4. c3 {[%clk 0:03:00.2]} 4... Qb6 {[%clk 0:02:50.6]} 5. Nf3 {[%clk 0:03:00.2]}
5... Nc6 {[%clk 0:02:51]} 6. a3 {[%clk 0:02:56.9]} 6... Nh6 {[%clk 0:02:50]} 7.
b4 {[%clk 0:02:57]} 7... cxd4 {[%clk 0:02:50.2]} 8. cxd4 {[%clk 0:02:57.9]} 8...
Nf5 {[%clk 0:02:50.7]} 9. Be3 {[%clk 0:02:58.6]} 9... f6 {[%clk 0:02:46.2]} 10.
exf6 {[%clk 0:02:58.9]} 10... gxf6 {[%clk 0:02:46.1]} 11. Bd3 {[%clk 0:02:59.6]}
11... Nxe3 {[%clk 0:02:46.3]} 12. fxe3 {[%clk 0:03:00.5]} 12... Bh6 {[%clk
0:02:46.1]} 13. Qe2 {[%clk 0:03:00.7]} 13... Bd7 {[%clk 0:02:42.3]} 14. O-O
{[%clk 0:03:00.6]} 14... O-O-O {[%clk 0:02:36.9]} 15. Nc3 {[%clk 0:03:00]} 15...
Ne7 {[%clk 0:02:20.6]} 16. e4 {[%clk 0:02:59.6]} 16... Kb8 {[%clk 0:01:59.4]}
17. exd5 {[%clk 0:02:58.9]} 17... Nxd5 {[%clk 0:01:59.4]} 18. Nxd5 {[%clk
0:02:58.8]} 18... exd5 {[%clk 0:02:00]} 19. Kh1 {[%clk 0:02:59.3]} 19... Rde8
{[%clk 0:01:50.7]} 20. Qf2 {[%clk 0:02:58.6]} 20... Rhg8 {[%clk 0:01:47.4]} 21.
Qh4 {[%clk 0:02:39.3]} 21... Be3 {[%clk 0:01:37]} 22. Rae1 {[%clk 0:02:38.9]}
22... Qd6 {[%clk 0:01:33.8]} 23. Re2 {[%clk 0:02:23]} 23... h6 {[%clk
0:01:02.3]} 24. Bh7 {[%clk 0:01:48.1]} 24... Bg5 {[%clk 0:00:34.4]} 25. Qf2
{[%clk 0:01:30.7]} 25... Rxe2 {[%clk 0:00:33.4]} 26. Qxe2 {[%clk 0:01:31.6]}
26... Re8 {[%clk 0:00:34]} 27. Qd1 {[%clk 0:01:20]} 27... Bb5 {[%clk 0:00:30.7]}
28. Bd3 {[%clk 0:01:19.5]} 28... Bd7 {[%clk 0:00:30.3]} 29. Qc2 {[%clk
0:00:54.4]} 29... Bg4 {[%clk 0:00:20.8]} 30. Nxg5 {[%clk 0:00:48.3]} 30... fxg5
{[%clk 0:00:21.5]} 31. h3 {[%clk 0:00:42.4]} 31... Bd7 {[%clk 0:00:20.3]} 32.
Bf5 {[%clk 0:00:28.4]} 32... Bb5 {[%clk 0:00:18.6]} 33. Bd3 {[%clk 0:00:23.7]}
33... Bd7 {[%clk 0:00:18.8]} 34. Qf2 {[%clk 0:00:22.5]} 34... a6 {[%clk
0:00:15.8]} 35. Qf3 {[%clk 0:00:18.2]} 35... Ka7 {[%clk 0:00:15.3]} 36. Qf2
{[%clk 0:00:13.7]} 36... Qe7 {[%clk 0:00:13.4]} 37. Bg6 {[%clk 0:00:08.9]} 37...
Rc8 {[%clk 0:00:12.1]} 38. Qf7 {[%clk 0:00:07]} 38... Qd6 {[%clk 0:00:10.5]} 39.
Qf6 {[%clk 0:00:05.7]} 39... Rc6 {[%clk 0:00:08.8]} 40. Qxd6 {[%clk 0:00:05.5]}
40... Rxd6 {[%clk 0:00:09.7]} 41. Bf7 {[%clk 0:00:05.1]} 41... Rc6 {[%clk
0:00:05.3]} 42. Bxd5 {[%clk 0:00:04.4]} 42... Rd6 {[%clk 0:00:05.9]} 43. Bf3
{[%clk 0:00:03.9]} 43... Rxd4 {[%clk 0:00:06.5]} 44. Re1 {[%clk 0:00:04]} 44...
Rd3 {[%clk 0:00:05.5]} 45. Re7 {[%clk 0:00:04]} 45... Kb6 {[%clk 0:00:04.1]} 46.
Be4 {[%clk 0:00:04.1]} 46... Rd4 {[%clk 0:00:03.5]} 47. Bf3 {[%clk 0:00:04.1]}
47... Rd3 {[%clk 0:00:03.5]} 48. Be4 {[%clk 0:00:04.4]} 48... Rd4 {[%clk
0:00:04]} 49. Kh2 {[%clk 0:00:05]} 49... Bc6 {[%clk 0:00:03]} 50. Bxc6 {[%clk
0:00:04]} 50... bxc6 {[%clk 0:00:03.9]} 51. Rh7 {[%clk 0:00:03.1]} 51... Rd3
{[%clk 0:00:02.9]} 52. a4 {[%clk 0:00:02.6]} 52... Ra3 {[%clk 0:00:03.8]} 53.
a5+ {[%clk 0:00:02.6]} 53... Kb5 {[%clk 0:00:04.4]} 54. Rxh6 {[%clk 0:00:03.5]}
54... Kxb4 {[%clk 0:00:03.6]} 55. Rxc6 {[%clk 0:00:03.7]} 55... Rxa5 {[%clk
0:00:03.9]} 56. Rg6 {[%clk 0:00:02.7]} 56... Re5 {[%clk 0:00:01.6]} 57. Rxa6
{[%clk 0:00:02.1]} 57... Kc4 {[%clk 0:00:02.4]} 58. Rd6 {[%clk 0:00:01.8]} 58...
Kc5 {[%clk 0:00:02.6]} 59. Rd1 {[%clk 0:00:02.4]} 59... Re4 {[%clk 0:00:03.2]}
60. Kg3 {[%clk 0:00:02.9]} 60... Kc6 {[%clk 0:00:03.2]} 61. Kf3 {[%clk
0:00:03.1]} 61... Rf4+ {[%clk 0:00:03.4]} 62. Kg3 {[%clk 0:00:02.9]} 62... Re4
{[%clk 0:00:04.1]} 63. Rd3 {[%clk 0:00:03]} 63... Rc4 {[%clk 0:00:03.4]} 64. Kf3
{[%clk 0:00:02.9]} 64... Rb4 {[%clk 0:00:03.2]} 65. Ke3 {[%clk 0:00:03.3]} 65...
Ra4 {[%clk 0:00:03.1]} 66. Rd4 {[%clk 0:00:03.3]} 66... Ra3+ {[%clk 0:00:03.6]}
67. Kf2 {[%clk 0:00:03]} 67... Ra5 {[%clk 0:00:02.7]} 68. Kf3 {[%clk 0:00:02.9]}
68... Re5 {[%clk 0:00:02.3]} 69. Re4 {[%clk 0:00:02.7]} 69... Rf5+ {[%clk
0:00:02.4]} 70. Kg4 {[%clk 0:00:02.9]} 70... Rd5 {[%clk 0:00:03]} 71. Re6+
{[%clk 0:00:02.6]} 71... Kd7 {[%clk 0:00:03.7]} 72. Rg6 {[%clk 0:00:02.8]} 72...
Rd2 {[%clk 0:00:04.6]} 73. g3 {[%clk 0:00:03.1]} 73... Rd5 {[%clk 0:00:03.8]}
74. Rxg5 {[%clk 0:00:03.4]} 74... Rd4+ {[%clk 0:00:04.5]} 75. Kh5 {[%clk
0:00:03.8]} 75... Ke7 {[%clk 0:00:05.1]} 76. h4 {[%clk 0:00:03.8]} 76... Kf7
{[%clk 0:00:05.5]} 77. g4 {[%clk 0:00:03.8]} 77... Rd8 {[%clk 0:00:06.2]} 78.
Rf5+ {[%clk 0:00:04.2]} 78... Kg7 {[%clk 0:00:06.3]} 79. Kg5 {[%clk 0:00:05]}
79... Rd6 {[%clk 0:00:06.8]} 80. h5 {[%clk 0:00:05.3]} 80... Rd7 {[%clk
0:00:07.3]} 81. Re5 {[%clk 0:00:05.4]} 81... Rb7 {[%clk 0:00:07.8]} 82. Kh4
{[%clk 0:00:05.2]} 82... Rb1 {[%clk 0:00:07]} 83. Rf5 {[%clk 0:00:04]} 83... Rb4
{[%clk 0:00:05.8]} 84. Kg5 {[%clk 0:00:02.4]} 84... Rb7 {[%clk 0:00:05.6]} 85.
Rd5 {[%clk 0:00:02.5]} 85... Rc7 {[%clk 0:00:05.7]} 86. Kf4 {[%clk 0:00:02.5]}
86... Kh6 {[%clk 0:00:05.9]} 87. Rd6+ {[%clk 0:00:01.8]} 87... Kg7 {[%clk
0:00:06.2]} 88. Ra6 {[%clk 0:00:02.3]} 88... Kh7 {[%clk 0:00:05.9]} 89. Kg3
{[%clk 0:00:02.8]} 89... Rc3+ {[%clk 0:00:06.1]} 90. Kh4 {[%clk 0:00:03.3]}
90... Rc7 {[%clk 0:00:07]} 91. Ra4 {[%clk 0:00:03.6]} 91... Rb7 {[%clk
0:00:07.2]} 92. g5 {[%clk 0:00:04.1]} 92... Rc7 {[%clk 0:00:07.7]} 93. Rf4
{[%clk 0:00:04.3]} 93... Rb7 {[%clk 0:00:08.1]} 94. Kg4 {[%clk 0:00:05.1]} 94...
Ra7 {[%clk 0:00:08.1]} 95. Re4 {[%clk 0:00:05.4]} 95... Rb7 {[%clk 0:00:08.5]}
96. Kf5 {[%clk 0:00:05.2]} 96... Rb5+ {[%clk 0:00:08.5]} 97. Re5 {[%clk
0:00:05.1]} 97... Rb7 {[%clk 0:00:09.3]} 98. Kf6 {[%clk 0:00:05.5]} 98... Rb1
{[%clk 0:00:07.9]} 99. Re7+ {[%clk 0:00:05.5]} 99... Kg8 {[%clk 0:00:08.3]} 100.
h6 {[%clk 0:00:06]} 100... Rb6+ {[%clk 0:00:06.9]} 101. Kf5 {[%clk 0:00:06.3]}
101... Kh8 {[%clk 0:00:06.8]} 102. Rd7 {[%clk 0:00:05.8]} 102... Kg8 {[%clk
0:00:06.5]} 103. g6 {[%clk 0:00:05.8]} 103... Rb5+ {[%clk 0:00:07.1]} 104. Ke6
{[%clk 0:00:06.1]} 104... Rb6+ {[%clk 0:00:07.7]} 105. Rd6 {[%clk 0:00:06.5]}
105... Rb8 {[%clk 0:00:08]} 106. Ke7 {[%clk 0:00:06.2]} 106... Rb7+ {[%clk
0:00:06.8]} 107. Rd7 {[%clk 0:00:06.5]} 107... Rb8 {[%clk 0:00:06.5]} 108. Rd8+
{[%clk 0:00:06.9]} 108... Rxd8 {[%clk 0:00:06.7]} 109. Kxd8 {[%clk 0:00:07.8]}
1-0

[Event "Late-Titled-Tuesday-Blitz-March-26-2024"]
[Site "Chess.com"]
[Date "2024.03.26"]
[Round "3"]
[White "Sina_Movahed"]
[Black "AnthonyWirig"]
[Result "0-1"]
[WhiteElo "3058"]
[BlackElo "2834"]
[TimeControl "180+1"]
[EndTime "14:33:24 PDT"]
[Termination "AnthonyWirig won by resignation"]

1. Nf3 {[%clk 0:03:00.9]} 1... c5 {[%clk 0:02:58.4]} 2. e4 {[%clk 0:03:00.9]}
2... e6 {[%clk 0:02:58.5]} 3. d4 {[%clk 0:03:01.3]} 3... cxd4 {[%clk 0:02:59.4]}
4. Nxd4 {[%clk 0:03:02.2]} 4... Nf6 {[%clk 0:03:00]} 5. Nc3 {[%clk 0:03:02.5]}
5... Nc6 {[%clk 0:03:00.7]} 6. Nxc6 {[%clk 0:03:01.4]} 6... bxc6 {[%clk
0:03:01.6]} 7. e5 {[%clk 0:03:02]} 7... Nd5 {[%clk 0:03:01.8]} 8. Ne4 {[%clk
0:03:02.7]} 8... Qc7 {[%clk 0:03:02.6]} 9. f4 {[%clk 0:03:03.2]} 9... Qb6 {[%clk
0:03:02.9]} 10. c4 {[%clk 0:03:02.2]} 10... Bb4+ {[%clk 0:03:02]} 11. Ke2 {[%clk
0:02:59.6]} 11... f5 {[%clk 0:03:01.7]} 12. Nf2 {[%clk 0:02:56.8]} 12... Qa6
{[%clk 0:02:57.5]} 13. Kf3 {[%clk 0:02:00.2]} 13... Nc7 {[%clk 0:02:57.3]} 14.
a3 {[%clk 0:01:40.3]} 14... Be7 {[%clk 0:02:56.3]} 15. h4 {[%clk 0:01:37.2]}
15... c5 {[%clk 0:02:55.7]} 16. Kg3 {[%clk 0:01:36.7]} 16... d6 {[%clk
0:02:48.2]} 17. exd6 {[%clk 0:01:32.9]} 17... Bxd6 {[%clk 0:02:49.1]} 18. b4
{[%clk 0:01:24.3]} 18... e5 {[%clk 0:02:38.1]} 19. Qe1 {[%clk 0:01:05.2]} 19...
e4 {[%clk 0:02:16]} 20. Kh2 {[%clk 0:00:57.9]} 20... Ne6 {[%clk 0:02:07]} 21. g3
{[%clk 0:00:56.3]} 21... O-O {[%clk 0:01:57.6]} 22. Be3 {[%clk 0:00:55.6]} 22...
Qc6 {[%clk 0:01:42.8]} 23. Rd1 {[%clk 0:00:43.7]} 23... a5 {[%clk 0:01:20.9]}
24. b5 {[%clk 0:00:42]} 24... Qc7 {[%clk 0:01:20.3]} 25. Bg2 {[%clk 0:00:40.6]}
25... Nxf4 {[%clk 0:01:01.5]} 26. gxf4 {[%clk 0:00:38.2]} 26... Bxf4+ {[%clk
0:01:02.4]} 27. Kg1 {[%clk 0:00:38.6]} 27... Be6 {[%clk 0:00:59]} 28. Nh3 {[%clk
0:00:31.6]} 28... Bg3 {[%clk 0:00:57.2]} 29. Qc3 {[%clk 0:00:28]} 29... Rad8
{[%clk 0:00:49.5]} 30. Rxd8 {[%clk 0:00:21.7]} 30... Rxd8 {[%clk 0:00:50.4]} 31.
Ng5 {[%clk 0:00:22.3]} 31... Rd3 {[%clk 0:00:22.4]} 32. Nxe6 {[%clk 0:00:21]}
32... Rxc3 {[%clk 0:00:19.9]} 33. Nxc7 {[%clk 0:00:21]} 33... Rxe3 {[%clk
0:00:20.3]} 34. Nd5 {[%clk 0:00:21.7]} 34... Rxa3 {[%clk 0:00:18.8]} 35. Rh3
{[%clk 0:00:21.9]} 35... Ra1+ {[%clk 0:00:15.3]} 36. Bf1 {[%clk 0:00:21.8]}
36... f4 {[%clk 0:00:16.2]} 37. b6 {[%clk 0:00:18.3]} 37... Rb1 {[%clk
0:00:15.2]} 38. Kg2 {[%clk 0:00:17.1]} 38... Rb2+ {[%clk 0:00:14.5]} 39. Kg1
{[%clk 0:00:17.2]} 39... a4 {[%clk 0:00:14.1]} 40. Nxf4 {[%clk 0:00:10.5]} 40...
Bxf4 {[%clk 0:00:13.2]} 41. Ra3 {[%clk 0:00:11.4]} 41... Rxb6 {[%clk 0:00:12.4]}
42. Rxa4 {[%clk 0:00:12.1]} 42... Kf7 {[%clk 0:00:12.5]} 43. Bg2 {[%clk
0:00:10.8]} 43... Rb1+ {[%clk 0:00:11.5]} 44. Kf2 {[%clk 0:00:11.4]} 44... Rb2+
{[%clk 0:00:12.1]} 45. Kf1 {[%clk 0:00:11.5]} 45... e3 {[%clk 0:00:12]} 46. Bd5+
{[%clk 0:00:10.4]} 46... Kf6 {[%clk 0:00:12]} 47. Ra3 {[%clk 0:00:10.6]} 47...
Rf2+ {[%clk 0:00:11.1]} 48. Ke1 {[%clk 0:00:11.2]} 48... Rh2 {[%clk 0:00:10.6]}
49. Kf1 {[%clk 0:00:10]} 49... Rxh4 {[%clk 0:00:10.2]} 50. Ke2 {[%clk
0:00:10.7]} 50... g5 {[%clk 0:00:10.1]} 51. Ra6+ {[%clk 0:00:10.1]} 51... Kf5
{[%clk 0:00:09.9]} 52. Kd3 {[%clk 0:00:09.1]} 52... Rh2 {[%clk 0:00:09]} 53.
Be6+ {[%clk 0:00:08.1]} 53... Ke5 {[%clk 0:00:09.1]} 54. Bg4 {[%clk 0:00:08.8]}
54... Rd2+ {[%clk 0:00:09.5]} 55. Kc3 {[%clk 0:00:09.3]} 55... Bg3 {[%clk
0:00:08.8]} 56. Re6+ {[%clk 0:00:08.4]} 56... Kf4 {[%clk 0:00:09.2]} 57. Bh5
{[%clk 0:00:08.9]} 57... Be1 {[%clk 0:00:08.8]} 58. Kb3 {[%clk 0:00:08.8]} 58...
Rd4 {[%clk 0:00:08.7]} 59. Rf6+ {[%clk 0:00:08.8]} 59... Ke5 {[%clk 0:00:07.8]}
60. Rf8 {[%clk 0:00:08.7]} 60... Bd2 {[%clk 0:00:06.1]} 61. Be2 {[%clk
0:00:07.1]} 61... Rd6 {[%clk 0:00:05.9]} 62. Ka4 {[%clk 0:00:06.8]} 62... Rb6
{[%clk 0:00:05.9]} 63. Re8+ {[%clk 0:00:06.1]} 63... Kd4 {[%clk 0:00:06.4]} 64.
Rd8+ {[%clk 0:00:06.6]} 64... Kc3 {[%clk 0:00:06.6]} 65. Rd3+ {[%clk 0:00:07.2]}
65... Kc2 {[%clk 0:00:06.4]} 66. Rd5 {[%clk 0:00:07.9]} 66... Rb4+ {[%clk
0:00:06.8]} 67. Ka3 {[%clk 0:00:08.2]} 67... Rb3+ {[%clk 0:00:07.4]} 68. Ka4
{[%clk 0:00:08.5]} 68... Rb4+ {[%clk 0:00:08]} 69. Ka5 {[%clk 0:00:08.7]} 69...
Rxc4+ {[%clk 0:00:08.1]} 70. Kb5 {[%clk 0:00:09.3]} 70... Rb4+ {[%clk
0:00:08.3]} 71. Kxc5 {[%clk 0:00:09.9]} 71... Rf4 {[%clk 0:00:09]} 72. Rxg5
{[%clk 0:00:10]} 72... Rf2 {[%clk 0:00:09.9]} 73. Bc4 {[%clk 0:00:02.7]} 73...
e2 {[%clk 0:00:10.2]} 74. Bxe2 {[%clk 0:00:03]} 74... Rxe2 {[%clk 0:00:11.1]}
75. Rh5 {[%clk 0:00:03.2]} 75... h6 {[%clk 0:00:10.7]} 76. Kd5 {[%clk
0:00:03.2]} 76... Rg2 {[%clk 0:00:10.6]} 77. Rh3 {[%clk 0:00:03.7]} 77... Rg5+
{[%clk 0:00:10.5]} 78. Ke4 {[%clk 0:00:04.3]} 78... Rg4+ {[%clk 0:00:10.9]} 79.
Kf5 {[%clk 0:00:04.4]} 79... Ra4 {[%clk 0:00:11.8]} 80. Kg6 {[%clk 0:00:04.5]}
80... Kd1 {[%clk 0:00:12]} 81. Rh1+ {[%clk 0:00:04.8]} 81... Ke2 {[%clk
0:00:12.4]} 82. Rh2+ {[%clk 0:00:05.7]} 82... Kd3 {[%clk 0:00:13]} 83. Rh3+
{[%clk 0:00:06.1]} 83... Be3 {[%clk 0:00:13.6]} 84. Rh1 {[%clk 0:00:06.7]} 84...
Ke4 {[%clk 0:00:13.2]} 85. Kh5 {[%clk 0:00:07.1]} 85... Bf4 {[%clk 0:00:13.4]}
86. Kg4 {[%clk 0:00:06.7]} 86... Be3 {[%clk 0:00:13.1]} 87. Rf1 {[%clk
0:00:06.5]} 87... Ra5 {[%clk 0:00:13.3]} 88. Kh3 {[%clk 0:00:06.5]} 88... Rh5+
{[%clk 0:00:13]} 89. Kg2 {[%clk 0:00:06.9]} 89... Rg5+ {[%clk 0:00:13.3]} 90.
Kh1 {[%clk 0:00:07.5]} 90... Rh5+ {[%clk 0:00:12.9]} 91. Kg2 {[%clk 0:00:07.4]}
91... Bf4 {[%clk 0:00:13.5]} 92. Rb1 {[%clk 0:00:07.3]} 92... Kf5 {[%clk
0:00:13.3]} 93. Rb5+ {[%clk 0:00:06.6]} 93... Be5 {[%clk 0:00:14.1]} 94. Rb3
{[%clk 0:00:07]} 94... Rh2+ {[%clk 0:00:14.2]} 95. Kg1 {[%clk 0:00:07.6]} 95...
Rd2 {[%clk 0:00:14.2]} 96. Rh3 {[%clk 0:00:07.2]} 96... Bf4 {[%clk 0:00:13.8]}
97. Rb3 {[%clk 0:00:07.2]} 97... Kg4 {[%clk 0:00:14.2]} 98. Rb7 {[%clk
0:00:06.6]} 98... h5 {[%clk 0:00:14.3]} 99. Rg7+ {[%clk 0:00:07.2]} 99... Bg5
{[%clk 0:00:14.8]} 100. Rb7 {[%clk 0:00:06.5]} 100... Bf4 {[%clk 0:00:15.1]}
101. Rb4 {[%clk 0:00:06.9]} 101... Kf3 {[%clk 0:00:15.3]} 102. Rb1 {[%clk
0:00:06.4]} 102... h4 {[%clk 0:00:14.9]} 103. Kh1 {[%clk 0:00:07]} 103... Rh2+
{[%clk 0:00:14.2]} 104. Kg1 {[%clk 0:00:07.6]} 104... Rh3 {[%clk 0:00:14.5]}
105. Rf1+ {[%clk 0:00:07.6]} 105... Kg3 {[%clk 0:00:14.5]} 106. Re1 {[%clk
0:00:06.3]} 106... Kg4 {[%clk 0:00:10.5]} 107. Kg2 {[%clk 0:00:05.5]} 107...
Rh2+ {[%clk 0:00:10.7]} 108. Kg1 {[%clk 0:00:06]} 108... h3 {[%clk 0:00:10.7]}
109. Rf1 {[%clk 0:00:05.1]} 109... Rg2+ {[%clk 0:00:09.5]} 110. Kh1 {[%clk
0:00:05.7]} 110... Rb2 {[%clk 0:00:10.1]} 111. Rg1+ {[%clk 0:00:05.8]} 111...
Kh4 {[%clk 0:00:10.5]} 112. Rf1 {[%clk 0:00:06.3]} 112... Kg3 {[%clk 0:00:10.4]}
113. Rg1+ {[%clk 0:00:06.3]} 113... Kf3 {[%clk 0:00:11]} 114. Rf1+ {[%clk
0:00:06.7]} 114... Ke4 {[%clk 0:00:11.5]} 115. Re1+ {[%clk 0:00:07.2]} 115...
Kf5 {[%clk 0:00:12]} 116. Rf1 {[%clk 0:00:07.8]} 116... Rh2+ {[%clk 0:00:11.3]}
117. Kg1 {[%clk 0:00:08.4]} 117... Rg2+ {[%clk 0:00:11.4]} 118. Kh1 {[%clk
0:00:08.8]} 118... Rc2 {[%clk 0:00:11.7]} 119. Re1 {[%clk 0:00:08.1]} 119... Bg3
{[%clk 0:00:11.8]} 120. Rf1+ {[%clk 0:00:08.5]} 120... Kg4 {[%clk 0:00:12.4]}
121. Kg1 {[%clk 0:00:08.9]} 121... Rg2+ {[%clk 0:00:11.9]} 122. Kh1 {[%clk
0:00:09.4]} 122... Rh2+ {[%clk 0:00:12]} 123. Kg1 {[%clk 0:00:09.5]} 123... Re2
{[%clk 0:00:12.9]} 124. Kh1 {[%clk 0:00:09.6]} 124... Bf4 {[%clk 0:00:13.1]}
125. Rg1+ {[%clk 0:00:09.4]} 125... Kh4 {[%clk 0:00:13.4]} 126. Rf1 {[%clk
0:00:10]} 126... Be3 {[%clk 0:00:14]} 127. Rd1 {[%clk 0:00:09.8]} 127... Kg3
{[%clk 0:00:14.1]} 0-1

[Event "Late-Titled-Tuesday-Blitz-March-26-2024"]
[Site "Chess.com"]
[Date "2024.03.26"]
[Round "4"]
[White "The_Straightforward_Rook"]
[Black "Sanyura"]
[Result "0-1"]
[WhiteElo "2382"]
[BlackElo "2582"]
[TimeControl "180+1"]
[EndTime "14:34:47 PDT"]
[Termination "Sanyura won by resignation"]

1. Nf3 {[%clk 0:03:00.9]} 1... Nf6 {[%clk 0:02:54.5]} 2. g3 {[%clk 0:02:59.4]}
2... b6 {[%clk 0:02:54.9]} 3. Bg2 {[%clk 0:02:59.9]} 3... Bb7 {[%clk 0:02:55.5]}
4. O-O {[%clk 0:03:00.3]} 4... g6 {[%clk 0:02:56.2]} 5. b3 {[%clk 0:03:00.7]}
5... Bg7 {[%clk 0:02:56.9]} 6. Bb2 {[%clk 0:03:01.3]} 6... O-O {[%clk
0:02:57.6]} 7. c4 {[%clk 0:02:57.2]} 7... c5 {[%clk 0:02:57.9]} 8. d3 {[%clk
0:02:55.6]} 8... Nc6 {[%clk 0:02:56.6]} 9. e3 {[%clk 0:02:54.6]} 9... d5 {[%clk
0:02:53.6]} 10. cxd5 {[%clk 0:02:52.5]} 10... Nxd5 {[%clk 0:02:53.4]} 11. Bxg7
{[%clk 0:02:51.9]} 11... Kxg7 {[%clk 0:02:54.3]} 12. Qe2 {[%clk 0:02:50.1]}
12... Qd6 {[%clk 0:02:53.8]} 13. Rd1 {[%clk 0:02:48.4]} 13... Rad8 {[%clk
0:02:53.4]} 14. Nbd2 {[%clk 0:02:47]} 14... Nc3 {[%clk 0:02:52.7]} 15. Qe1
{[%clk 0:02:46.7]} 15... Nxd1 {[%clk 0:02:52.9]} 16. Rxd1 {[%clk 0:02:47.5]}
16... Qxd3 {[%clk 0:02:53]} 0-1

[Event "Late-Titled-Tuesday-Blitz-March-26-2024"]
[Site "Chess.com"]
[Date "2024.03.26"]
[Round "4"]
[White "BebeBonito2022"]
[Black "Christian_Jordan"]
[Result "1-0"]
[WhiteElo "2298"]
[BlackElo "2034"]
[TimeControl "180+1"]
[EndTime "14:35:07 PDT"]
[Termination "BebeBonito2022 won by resignation"]

1. d4 {[%clk 0:03:00.9]} 1... e6 {[%clk 0:02:58.4]} 2. c4 {[%clk 0:03:01]} 2...
b6 {[%clk 0:02:57.8]} 3. a3 {[%clk 0:03:00.9]} 3... Bb7 {[%clk 0:02:56.2]} 4.
Nf3 {[%clk 0:03:00.7]} 4... f5 {[%clk 0:02:55]} 5. Nc3 {[%clk 0:02:57.1]} 5...
Nf6 {[%clk 0:02:54.4]} 6. d5 {[%clk 0:02:53.1]} 6... g6 {[%clk 0:02:53.8]} 7. g3
{[%clk 0:02:50.6]} 7... Bg7 {[%clk 0:02:52.5]} 8. Bg2 {[%clk 0:02:51.1]} 8...
O-O {[%clk 0:02:49.2]} 9. O-O {[%clk 0:02:51.3]} 9... Na6 {[%clk 0:02:46.9]} 10.
Nd4 {[%clk 0:02:41.1]} 10... Qe7 {[%clk 0:02:42.8]} 11. d6 {[%clk 0:02:37.4]}
1-0

[Event "Late-Titled-Tuesday-Blitz-March-26-2024"]
[Site "Chess.com"]
[Date "2024.03.26"]
[Round "4"]
[White "FMYiLiu"]
[Black "Josetricks"]
[Result "0-1"]
[WhiteElo "2495"]
[BlackElo "2703"]
[TimeControl "180+1"]
[EndTime "14:36:38 PDT"]
[Termination "Josetricks won by resignation"]

1. d4 {[%clk 0:03:00.9]} 1... g6 {[%clk 0:03:00.9]} 2. e4 {[%clk 0:02:55.7]}
2... Bg7 {[%clk 0:03:01.5]} 3. c3 {[%clk 0:02:56.3]} 3... c6 {[%clk 0:03:01.4]}
4. h4 {[%clk 0:02:56.4]} 4... d5 {[%clk 0:03:00.7]} 5. e5 {[%clk 0:02:56.1]}
5... f6 {[%clk 0:03:00.4]} 6. Nf3 {[%clk 0:02:54.3]} 6... Bg4 {[%clk 0:02:59.8]}
7. Be2 {[%clk 0:02:51.7]} 7... Bxf3 {[%clk 0:02:53.6]} 8. Bxf3 {[%clk
0:02:51.9]} 8... fxe5 {[%clk 0:02:51.1]} 9. h5 {[%clk 0:02:52.4]} 9... e4 {[%clk
0:02:48.3]} 10. Be2 {[%clk 0:02:49.1]} 10... Nd7 {[%clk 0:02:43.6]} 11. Bf4
{[%clk 0:02:44.6]} 11... e5 {[%clk 0:02:34.8]} 12. dxe5 {[%clk 0:02:44.2]} 12...
g5 {[%clk 0:02:32.4]} 13. h6 {[%clk 0:02:41.2]} 13... Bxe5 {[%clk 0:02:29.1]}
14. Bh5+ {[%clk 0:02:38.7]} 14... Kf8 {[%clk 0:02:25]} 15. Bxe5 {[%clk
0:02:32.9]} 15... Nxe5 {[%clk 0:02:25.9]} 16. Qd4 {[%clk 0:02:33.2]} 16... Nd3+
{[%clk 0:02:02.1]} 17. Ke2 {[%clk 0:02:18.3]} 17... Qf6 {[%clk 0:01:57.5]} 18.
Qe3 {[%clk 0:02:08.1]} 18... Nxh6 {[%clk 0:01:53.7]} 0-1

[Event "Late-Titled-Tuesday-Blitz-March-26-2024"]
[Site "Chess.com"]
[Date "2024.03.26"]
[Round "4"]
[White "AsaHoffmann"]
[Black "OriTaichman"]
[Result "0-1"]
[WhiteElo "2419"]
[BlackElo "2623"]
[TimeControl "180+1"]
[EndTime "14:37:02 PDT"]
[Termination "OriTaichman won by checkmate"]

1. d4 {[%clk 0:02:57.9]} 1... Nf6 {[%clk 0:02:59.9]} 2. Bg5 {[%clk 0:02:57.2]}
2... Ne4 {[%clk 0:02:59.5]} 3. Bf4 {[%clk 0:02:57.3]} 3... c5 {[%clk 0:02:59.9]}
4. f3 {[%clk 0:02:57.4]} 4... Qa5+ {[%clk 0:03:00]} 5. c3 {[%clk 0:02:57.2]}
5... Nf6 {[%clk 0:03:00.3]} 6. d5 {[%clk 0:02:57.3]} 6... e6 {[%clk 0:02:55.3]}
7. e4 {[%clk 0:02:56.9]} 7... Qb6 {[%clk 0:02:55.1]} 8. Na3 {[%clk 0:02:54.8]}
8... exd5 {[%clk 0:02:46.4]} 9. exd5 {[%clk 0:02:54.1]} 9... Nxd5 {[%clk
0:02:27]} 10. Qxd5 {[%clk 0:02:51.7]} 10... Qxb2 {[%clk 0:02:27]} 11. Nb5 {[%clk
0:02:32.8]} 11... Qxa1+ {[%clk 0:02:24.2]} 12. Kf2 {[%clk 0:02:32.6]} 12... Na6
{[%clk 0:02:09.4]} 13. Bc4 {[%clk 0:02:30.5]} 13... Be7 {[%clk 0:01:44]} 14.
Qxf7+ {[%clk 0:02:24.6]} 14... Kd8 {[%clk 0:01:44.4]} 15. Qxg7 {[%clk
0:02:00.5]} 15... Re8 {[%clk 0:01:35.8]} 16. Nd6 {[%clk 0:01:57.5]} 16... Bxd6
{[%clk 0:01:28.1]} 17. Bxd6 {[%clk 0:01:57.1]} 17... Qe1# {[%clk 0:01:27.5]} 0-1